[Event "*** Titled Tuesday Blitz"]
[Site "Chess.com"]
[Date "2019.03.05"]
[Round "7"]
[White "aa175"]
[Black "calemcc"]
[Result "1/2-1/2"]
[WhiteElo "1850"]
[BlackElo "2224"]
[TimeControl "180+2"]
[EndTime "14:41:43 PST"]
[Termination "Game drawn - insufficient material"]

1. e4 {[%clk 0:02:48.1]} 1... e6 {[%clk 0:03:00.5]} 2. Nf3 {[%clk 0:02:49.2]}
2... d5 {[%clk 0:03:02.4]} 3. exd5 {[%clk 0:02:51.1]} 3... exd5 {[%clk
0:03:02.9]} 4. Be2 {[%clk 0:02:53]} 4... Nf6 {[%clk 0:03:03.1]} 5. O-O {[%clk
0:02:54.9]} 5... Be7 {[%clk 0:03:04]} 6. d3 {[%clk 0:02:56.2]} 6... O-O {[%clk
0:03:05.1]} 7. Nbd2 {[%clk 0:02:58.1]} 7... Bg4 {[%clk 0:03:05.9]} 8. h3 {[%clk
0:03:00]} 8... Bh5 {[%clk 0:03:06.8]} 9. Re1 {[%clk 0:03:01.1]} 9... Re8 {[%clk
0:03:07.3]} 10. Ne5 {[%clk 0:03:01.8]} 10... Bxe2 {[%clk 0:03:04.9]} 11. Qxe2
{[%clk 0:03:03.7]} 11... Bd6 {[%clk 0:03:03.7]} 12. Ndf3 {[%clk 0:03:04.4]}
12... Nc6 {[%clk 0:03:02.1]} 13. d4 {[%clk 0:03:01.9]} 13... Nxd4 {[%clk
0:03:01.9]} 14. Nxd4 {[%clk 0:02:59.2]} 14... Bxe5 {[%clk 0:02:52.6]} 15. Qd1
{[%clk 0:02:49]} 15... Ne4 {[%clk 0:02:39]} 16. Be3 {[%clk 0:02:34.1]} 16... Qh4
{[%clk 0:02:31.4]} 17. Nf3 {[%clk 0:02:27.1]} 17... Qf6 {[%clk 0:02:25.1]} 18.
Qxd5 {[%clk 0:02:26.3]} 18... Bxb2 {[%clk 0:02:09.7]} 19. Rab1 {[%clk
0:02:20.9]} 19... Nc3 {[%clk 0:02:07.1]} 20. Qxb7 {[%clk 0:02:16.4]} 20... Nxb1
{[%clk 0:02:07.4]} 21. Rxb1 {[%clk 0:02:18.3]} 21... Be5 {[%clk 0:02:02]} 22.
Nxe5 {[%clk 0:02:14.5]} 22... Qxe5 {[%clk 0:02:02.2]} 23. Bxa7 {[%clk
0:02:09.6]} 23... h6 {[%clk 0:01:52.7]} 24. g3 {[%clk 0:01:49.7]} 24... Qa5
{[%clk 0:01:47.4]} 25. Bd4 {[%clk 0:01:27.2]} 25... Qxa2 {[%clk 0:01:45.3]} 26.
Ra1 {[%clk 0:01:28.2]} 26... Rab8 {[%clk 0:01:28.7]} 27. Qxc7 {[%clk 0:00:55]}
27... Rb1+ {[%clk 0:01:27.2]} 28. Rxb1 {[%clk 0:00:54.1]} 28... Qxb1+ {[%clk
0:01:29.1]} 29. Kg2 {[%clk 0:00:52.4]} 29... Qe1 {[%clk 0:01:28.9]} 30. Qc6
{[%clk 0:00:41.3]} 30... Rd8 {[%clk 0:01:19.8]} 31. c3 {[%clk 0:00:24.3]} 31...
Rb8 {[%clk 0:01:19.5]} 32. h4 {[%clk 0:00:10.4]} 32... h5 {[%clk 0:01:06.6]} 33.
Kh2 {[%clk 0:00:05.6]} 33... Rd8 {[%clk 0:00:55.1]} 34. Qf3 {[%clk 0:00:04.2]}
34... Qf1 {[%clk 0:00:13.7]} 35. Qxh5 {[%clk 0:00:03.7]} 35... Rxd4 {[%clk
0:00:14]} 36. cxd4 {[%clk 0:00:04.5]} 36... Qxf2+ {[%clk 0:00:15.5]} 37. Kh3
{[%clk 0:00:05.8]} 37... Qxd4 {[%clk 0:00:16.5]} 38. Qg4 {[%clk 0:00:06]} 38...
Qf6 {[%clk 0:00:17.4]} 39. Qc8+ {[%clk 0:00:06.9]} 39... Kh7 {[%clk 0:00:17.8]}
40. Qc2+ {[%clk 0:00:08.1]} 40... g6 {[%clk 0:00:19.7]} 41. Qd3 {[%clk
0:00:06.5]} 41... Qf2 {[%clk 0:00:20.7]} 42. Qe4 {[%clk 0:00:05.6]} 42... Kg7
{[%clk 0:00:22.6]} 43. Qe5+ {[%clk 0:00:06.4]} 43... Kg8 {[%clk 0:00:22.9]} 44.
Qb8+ {[%clk 0:00:06.9]} 44... Kg7 {[%clk 0:00:24.8]} 45. Qe5+ {[%clk 0:00:07.8]}
45... Kg8 {[%clk 0:00:26.1]} 46. Qe8+ {[%clk 0:00:08.1]} 46... Kh7 {[%clk
0:00:27]} 47. Qe7 {[%clk 0:00:07.4]} 47... Qf3 {[%clk 0:00:27.7]} 48. Qe1 {[%clk
0:00:06]} 48... Kh6 {[%clk 0:00:27.6]} 49. Qa1 {[%clk 0:00:04.4]} 49... Kh7
{[%clk 0:00:27.8]} 50. Qe1 {[%clk 0:00:04.9]} 50... g5 {[%clk 0:00:27.6]} 51.
Qb1+ {[%clk 0:00:05.1]} 51... f5 {[%clk 0:00:27.2]} 52. hxg5 {[%clk 0:00:05.6]}
52... Kg6 {[%clk 0:00:28.4]} 53. Qb6+ {[%clk 0:00:06]} 53... Kxg5 {[%clk
0:00:29.2]} 54. Qd8+ {[%clk 0:00:07.3]} 54... Kg6 {[%clk 0:00:30]} 55. Qg8+
{[%clk 0:00:08.1]} 55... Kf6 {[%clk 0:00:30.3]} 56. Qf8+ {[%clk 0:00:08.7]}
56... Ke6 {[%clk 0:00:31.3]} 57. Qe8+ {[%clk 0:00:09.6]} 57... Kf6 {[%clk
0:00:32.5]} 58. Qf8+ {[%clk 0:00:10.2]} 58... Ke5 {[%clk 0:00:33.9]} 59. Qe7+
{[%clk 0:00:10.9]} 59... Kd4 {[%clk 0:00:35.2]} 60. Qd6+ {[%clk 0:00:11.3]}
60... Ke3 {[%clk 0:00:36.3]} 61. Qc5+ {[%clk 0:00:10.6]} 61... Ke2 {[%clk
0:00:37.1]} 62. Qc2+ {[%clk 0:00:10.9]} 62... Kf1 {[%clk 0:00:38.1]} 63. Qc1+
{[%clk 0:00:05]} 63... Kf2 {[%clk 0:00:39.3]} 64. Qd2+ {[%clk 0:00:05.7]} 64...
Kg1 {[%clk 0:00:39.8]} 65. Qe1+ {[%clk 0:00:04]} 65... Qf1+ {[%clk 0:00:40.8]}
66. Qxf1+ {[%clk 0:00:05.3]} 66... Kxf1 {[%clk 0:00:42.7]} 67. Kh4 {[%clk
0:00:02.4]} 67... Kg2 {[%clk 0:00:43.7]} 68. Kg5 {[%clk 0:00:03.6]} 68... Kxg3
{[%clk 0:00:44.8]} 69. Kxf5 {[%clk 0:00:05]} 1/2-1/2

[Event "*** Titled Tuesday Blitz"]
[Site "Chess.com"]
[Date "2019.03.05"]
[Round "7"]
[White "bascheyaro"]
[Black "MITerryble"]
[Result "0-1"]
[WhiteElo "2806"]
[BlackElo "2825"]
[TimeControl "180+2"]
[EndTime "14:41:48 PST"]
[Termination "MITerryble won by resignation"]

1. d4 {[%clk 0:03:01.9]} 1... Nf6 {[%clk 0:03:00.7]} 2. c4 {[%clk 0:03:03.2]}
2... d6 {[%clk 0:03:01.7]} 3. Nc3 {[%clk 0:03:04.5]} 3... Nbd7 {[%clk 0:03:03]}
4. Nf3 {[%clk 0:03:05.7]} 4... e5 {[%clk 0:03:04.2]} 5. Bg5 {[%clk 0:03:06.1]}
5... Be7 {[%clk 0:03:04.7]} 6. e3 {[%clk 0:03:07.3]} 6... O-O {[%clk 0:03:05.2]}
7. Be2 {[%clk 0:03:08.6]} 7... c6 {[%clk 0:03:05.2]} 8. O-O {[%clk 0:03:05]}
8... Re8 {[%clk 0:03:00.7]} 9. h3 {[%clk 0:03:00]} 9... Qc7 {[%clk 0:02:58.4]}
10. Rc1 {[%clk 0:02:56.4]} 10... Bf8 {[%clk 0:02:46]} 11. Qc2 {[%clk 0:02:55]}
11... a5 {[%clk 0:02:44.1]} 12. Rfd1 {[%clk 0:02:55.3]} 12... h6 {[%clk
0:02:10.4]} 13. Bh4 {[%clk 0:02:55.3]} 13... exd4 {[%clk 0:01:48.4]} 14. exd4
{[%clk 0:02:48.6]} 14... Nh5 {[%clk 0:01:44.8]} 15. Re1 {[%clk 0:02:24.6]} 15...
Ndf6 {[%clk 0:01:20.4]} 16. d5 {[%clk 0:02:09.2]} 16... g5 {[%clk 0:01:12.7]}
17. Nxg5 {[%clk 0:01:39.4]} 17... hxg5 {[%clk 0:01:13]} 18. Bxg5 {[%clk
0:01:40]} 18... Bd7 {[%clk 0:00:54.2]} 19. g4 {[%clk 0:01:39.4]} 19... Nh7
{[%clk 0:00:55.2]} 20. Be3 {[%clk 0:01:34.8]} 20... N5f6 {[%clk 0:00:41.9]} 21.
Bd3 {[%clk 0:01:35.9]} 21... Kh8 {[%clk 0:00:35.3]} 22. g5 {[%clk 0:01:35.4]}
22... Rxe3 {[%clk 0:00:35.8]} 23. Rxe3 {[%clk 0:01:36]} 23... Nxg5 {[%clk
0:00:37.1]} 24. h4 {[%clk 0:01:30.9]} 24... Ngh7 {[%clk 0:00:38]} 25. Rf3 {[%clk
0:01:14.8]} 25... Bg4 {[%clk 0:00:33.9]} 26. Rg3 {[%clk 0:01:15.4]} 26... Bh6
{[%clk 0:00:28.7]} 27. Bxh7 {[%clk 0:00:25.8]} 27... Bxc1 {[%clk 0:00:29.9]} 28.
Qxc1 {[%clk 0:00:27]} 28... Kxh7 {[%clk 0:00:31]} 29. Qg5 {[%clk 0:00:28.1]}
29... Qd8 {[%clk 0:00:26.7]} 30. h5 {[%clk 0:00:21.2]} 30... Qh8 {[%clk
0:00:25.4]} 31. Qf4 {[%clk 0:00:18.9]} 31... Rg8 {[%clk 0:00:23.5]} 32. Qxd6
{[%clk 0:00:20]} 32... Nxh5 {[%clk 0:00:20.5]} 33. Rg2 {[%clk 0:00:21.2]} 33...
Bf3 {[%clk 0:00:16.7]} 34. Rxg8 {[%clk 0:00:19.9]} 34... Qxg8+ {[%clk
0:00:18.6]} 35. Kf1 {[%clk 0:00:21.5]} 35... Qg2+ {[%clk 0:00:19.9]} 36. Ke1
{[%clk 0:00:23]} 36... Qg1+ {[%clk 0:00:21.3]} 37. Kd2 {[%clk 0:00:24.6]} 37...
Qxf2+ {[%clk 0:00:23.2]} 38. Kd3 {[%clk 0:00:25.9]} 38... Bg4 {[%clk 0:00:19.6]}
39. c5 {[%clk 0:00:19]} 39... Nf4+ {[%clk 0:00:15.8]} 40. Ke4 {[%clk 0:00:19.6]}
40... Nxd5 {[%clk 0:00:12.1]} 41. Nxd5 {[%clk 0:00:11.6]} 41... cxd5+ {[%clk
0:00:12.7]} 42. Kxd5 {[%clk 0:00:11.4]} 42... Qd2+ {[%clk 0:00:11]} 43. Ke5
{[%clk 0:00:12.7]} 43... Qxb2+ {[%clk 0:00:09.5]} 44. Kf4 {[%clk 0:00:13.6]}
44... Be6 {[%clk 0:00:07.5]} 45. Kg5 {[%clk 0:00:14]} 45... Qg2+ {[%clk
0:00:08.1]} 46. Kf6 {[%clk 0:00:15.2]} 46... Qg7+ {[%clk 0:00:07.9]} 47. Ke7
{[%clk 0:00:16.8]} 47... Qg5+ {[%clk 0:00:09]} 48. Kf8 {[%clk 0:00:18.2]} 48...
Qg8+ {[%clk 0:00:09.3]} 49. Ke7 {[%clk 0:00:19.4]} 49... Qg5+ {[%clk 0:00:11.2]}
50. Kf8 {[%clk 0:00:20.8]} 50... Kg6 {[%clk 0:00:11.9]} 51. Qb6 {[%clk
0:00:20.3]} 51... Qd5 {[%clk 0:00:10.3]} 52. Ke7 {[%clk 0:00:21]} 52... Qd7+
{[%clk 0:00:11]} 53. Kf8 {[%clk 0:00:22.5]} 53... Qc8+ {[%clk 0:00:10.9]} 54.
Ke7 {[%clk 0:00:23.8]} 54... Qd7+ {[%clk 0:00:12.2]} 55. Kf8 {[%clk 0:00:24.9]}
55... Qc6 {[%clk 0:00:14.1]} 56. Qxa5 {[%clk 0:00:26.1]} 56... Kf5 {[%clk
0:00:14.4]} 57. a4 {[%clk 0:00:25.5]} 57... Ke4 {[%clk 0:00:15.3]} 58. Kg7
{[%clk 0:00:25]} 58... Kd5 {[%clk 0:00:15.8]} 59. Qd2+ {[%clk 0:00:24.4]} 59...
Kxc5 {[%clk 0:00:16.2]} 60. a5 {[%clk 0:00:26]} 60... Kb5 {[%clk 0:00:16.5]} 61.
Kf6 {[%clk 0:00:27.1]} 61... Qf3+ {[%clk 0:00:16.3]} 62. Ke7 {[%clk 0:00:28.2]}
62... Qd5 {[%clk 0:00:18]} 63. Qe1 {[%clk 0:00:27.9]} 63... Qc5+ {[%clk
0:00:18.6]} 64. Kf6 {[%clk 0:00:28.8]} 64... Qd4+ {[%clk 0:00:18]} 65. Kg5
{[%clk 0:00:29.8]} 65... Qg7+ {[%clk 0:00:12.2]} 66. Kf4 {[%clk 0:00:31.2]}
66... Qf6+ {[%clk 0:00:13.4]} 67. Kg3 {[%clk 0:00:32.6]} 67... Qg5+ {[%clk
0:00:14.4]} 68. Kf3 {[%clk 0:00:33.9]} 68... Bd5+ {[%clk 0:00:15.3]} 0-1

[Event "*** Titled Tuesday Blitz"]
[Site "Chess.com"]
[Date "2019.03.05"]
[Round "7"]
[White "GM_dmitrij"]
[Black "Genghis_K"]
[Result "0-1"]
[WhiteElo "2862"]
[BlackElo "2850"]
[TimeControl "180+2"]
[EndTime "14:41:50 PST"]
[Termination "Genghis_K won by resignation"]

1. e4 {[%clk 0:03:01.9]} 1... c5 {[%clk 0:02:59.2]} 2. Nf3 {[%clk 0:03:03]} 2...
d6 {[%clk 0:03:00.3]} 3. Bb5+ {[%clk 0:03:03.8]} 3... Nd7 {[%clk 0:03:00.8]} 4.
O-O {[%clk 0:03:03.7]} 4... a6 {[%clk 0:03:02.1]} 5. Bd3 {[%clk 0:03:04.9]} 5...
Ngf6 {[%clk 0:03:02.2]} 6. Re1 {[%clk 0:03:06.4]} 6... e6 {[%clk 0:03:02.8]} 7.
c3 {[%clk 0:03:07.8]} 7... b5 {[%clk 0:03:04]} 8. Bc2 {[%clk 0:03:09]} 8... c4
{[%clk 0:03:04.6]} 9. a4 {[%clk 0:03:07.7]} 9... Bb7 {[%clk 0:03:02.2]} 10. d4
{[%clk 0:03:08.8]} 10... cxd3 {[%clk 0:02:58.7]} 11. Qxd3 {[%clk 0:03:10.2]}
11... Be7 {[%clk 0:02:36]} 12. axb5 {[%clk 0:03:07.1]} 12... axb5 {[%clk
0:02:37.9]} 13. Rxa8 {[%clk 0:02:58.7]} 13... Qxa8 {[%clk 0:02:37.2]} 14. Qxb5
{[%clk 0:02:57.3]} 14... Bxe4 {[%clk 0:02:23]} 15. Bxe4 {[%clk 0:02:53.9]} 15...
Nxe4 {[%clk 0:02:22.9]} 16. Bf4 {[%clk 0:02:13.9]} 16... Nf6 {[%clk 0:02:10.5]}
17. Rd1 {[%clk 0:02:13.3]} 17... e5 {[%clk 0:01:44.5]} 18. Bxe5 {[%clk
0:01:58.9]} 18... dxe5 {[%clk 0:01:44.3]} 19. Nxe5 {[%clk 0:01:59.6]} 19... Qb8
{[%clk 0:01:40.1]} 20. Qxb8+ {[%clk 0:01:17.2]} 20... Nxb8 {[%clk 0:01:39.3]}
21. Nd2 {[%clk 0:01:16.8]} 21... O-O {[%clk 0:01:37.5]} 22. Ndc4 {[%clk
0:01:17.9]} 22... Rc8 {[%clk 0:01:22.9]} 23. Nb6 {[%clk 0:01:12.9]} 23... Rd8
{[%clk 0:01:20.8]} 24. Rxd8+ {[%clk 0:01:10.7]} 24... Bxd8 {[%clk 0:01:22.7]}
25. Nbc4 {[%clk 0:01:04.6]} 25... Nfd7 {[%clk 0:01:20.2]} 26. Nd3 {[%clk
0:00:54.1]} 26... f6 {[%clk 0:01:21.4]} 27. Kf1 {[%clk 0:00:54.3]} 27... Kf7
{[%clk 0:01:22.8]} 28. b4 {[%clk 0:00:50.9]} 28... Bc7 {[%clk 0:01:19.7]} 29.
Ke2 {[%clk 0:00:49.8]} 29... Ke6 {[%clk 0:01:21.1]} 30. Ne3 {[%clk 0:00:44.4]}
30... Nc6 {[%clk 0:01:13.1]} 31. b5 {[%clk 0:00:41.5]} 31... Nce5 {[%clk
0:01:10.8]} 32. Nf4+ {[%clk 0:00:40.6]} 32... Kf7 {[%clk 0:01:07.4]} 33. Nfd5
{[%clk 0:00:41.5]} 33... Bd8 {[%clk 0:01:07.9]} 34. f4 {[%clk 0:00:38.4]} 34...
Ng6 {[%clk 0:01:09]} 35. Kd3 {[%clk 0:00:32.2]} 35... Ne7 {[%clk 0:00:53.9]} 36.
Nb4 {[%clk 0:00:19.5]} 36... Ke6 {[%clk 0:00:51.3]} 37. g4 {[%clk 0:00:15.6]}
37... Bb6 {[%clk 0:00:49.7]} 38. f5+ {[%clk 0:00:05.5]} 38... Kd6 {[%clk
0:00:50.5]} 39. Nec2 {[%clk 0:00:05.5]} 39... Ne5+ {[%clk 0:00:49.2]} 40. Ke4
{[%clk 0:00:06.2]} 40... Nxg4 {[%clk 0:00:48]} 41. c4 {[%clk 0:00:06]} 41... Ne5
{[%clk 0:00:41.4]} 42. Na3 {[%clk 0:00:05.5]} 42... Bc5 {[%clk 0:00:39.4]} 43.
Nbc2 {[%clk 0:00:06.8]} 43... Nc8 {[%clk 0:00:30.4]} 44. h3 {[%clk 0:00:06.3]}
44... Nb6 {[%clk 0:00:31.7]} 45. Nb1 {[%clk 0:00:06.2]} 45... Nexc4 {[%clk
0:00:29.6]} 46. Nc3 {[%clk 0:00:06.5]} 46... Ne5 {[%clk 0:00:27.7]} 47. Kf4
{[%clk 0:00:06.9]} 47... Nd5+ {[%clk 0:00:26.1]} 48. Nxd5 {[%clk 0:00:07.5]}
48... Kxd5 {[%clk 0:00:28]} 49. h4 {[%clk 0:00:07.9]} 49... Kc4 {[%clk 0:00:23]}
50. h5 {[%clk 0:00:07.6]} 50... h6 {[%clk 0:00:24.4]} 51. Ne1 {[%clk 0:00:05]}
51... Kxb5 {[%clk 0:00:23.8]} 52. Ng2 {[%clk 0:00:06.6]} 52... Bf2 {[%clk
0:00:24]} 53. Ke4 {[%clk 0:00:06.8]} 53... Kc4 {[%clk 0:00:24.8]} 54. Nf4 {[%clk
0:00:08]} 54... Nf7 {[%clk 0:00:18.2]} 55. Kf3 {[%clk 0:00:05.3]} 55... Bc5
{[%clk 0:00:18.8]} 56. Kg4 {[%clk 0:00:05.4]} 56... Ng5 {[%clk 0:00:16.1]} 57.
Ng2 {[%clk 0:00:04]} 57... Kd5 {[%clk 0:00:17.2]} 58. Nh4 {[%clk 0:00:05.1]}
58... Ke4 {[%clk 0:00:17.9]} 59. Ng6 {[%clk 0:00:06.5]} 59... Bd6 {[%clk
0:00:18.7]} 60. Nh4 {[%clk 0:00:07.4]} 60... Nf7 {[%clk 0:00:19.2]} 61. Kh3
{[%clk 0:00:06.5]} 61... Kf4 {[%clk 0:00:19.9]} 62. Kg2 {[%clk 0:00:06.1]} 62...
Ne5 {[%clk 0:00:16.8]} 63. Kh3 {[%clk 0:00:06.5]} 63... Bb4 {[%clk 0:00:17.4]}
64. Ng2+ {[%clk 0:00:06.9]} 64... Kxf5 {[%clk 0:00:18.4]} 65. Ne3+ {[%clk
0:00:08.3]} 65... Kg5 {[%clk 0:00:19.9]} 66. Nd5 {[%clk 0:00:09.5]} 66... Bc5
{[%clk 0:00:21.3]} 67. Nc3 {[%clk 0:00:09.9]} 67... Kxh5 {[%clk 0:00:22.3]} 68.
Ne4 {[%clk 0:00:11.5]} 68... Be7 {[%clk 0:00:23.9]} 69. Ng3+ {[%clk 0:00:12.6]}
69... Kg6 {[%clk 0:00:25.1]} 70. Ne4 {[%clk 0:00:14.1]} 70... f5 {[%clk
0:00:26.3]} 71. Nc3 {[%clk 0:00:15.6]} 71... Kf7 {[%clk 0:00:26.7]} 72. Nd5
{[%clk 0:00:17.5]} 72... Bd6 {[%clk 0:00:27.9]} 0-1

[Event "*** Titled Tuesday Blitz"]
[Site "Chess.com"]
[Date "2019.03.05"]
[Round "7"]
[White "Shant_Sargsyan"]
[Black "PaulfromSPb"]
[Result "1-0"]
[WhiteElo "2912"]
[BlackElo "2617"]
[TimeControl "180+2"]
[EndTime "14:41:50 PST"]
[Termination "Shant_Sargsyan won by resignation"]

1. Nf3 {[%clk 0:03:01.7]} 1... Nf6 {[%clk 0:02:59.8]} 2. c4 {[%clk 0:03:03]}
2... b6 {[%clk 0:02:57.8]} 3. d4 {[%clk 0:03:03]} 3... e6 {[%clk 0:02:57.8]} 4.
g3 {[%clk 0:03:04.3]} 4... Ba6 {[%clk 0:02:58]} 5. Qa4 {[%clk 0:03:03.9]} 5...
Bb7 {[%clk 0:02:54.8]} 6. Bg2 {[%clk 0:03:05.2]} 6... c5 {[%clk 0:02:55.8]} 7.
dxc5 {[%clk 0:03:07.1]} 7... Bxc5 {[%clk 0:02:48.1]} 8. O-O {[%clk 0:03:08.5]}
8... O-O {[%clk 0:02:48.9]} 9. Nc3 {[%clk 0:03:09.9]} 9... Na6 {[%clk 0:02:50]}
10. Rd1 {[%clk 0:03:10.8]} 10... Be7 {[%clk 0:02:51]} 11. Bf4 {[%clk 0:03:08.3]}
11... Nc5 {[%clk 0:02:52.3]} 12. Qc2 {[%clk 0:03:09]} 12... Qc8 {[%clk
0:02:53.4]} 13. Rd4 {[%clk 0:03:04.5]} 13... d5 {[%clk 0:02:54.1]} 14. cxd5
{[%clk 0:03:05.9]} 14... exd5 {[%clk 0:02:54.9]} 15. Rdd1 {[%clk 0:02:47]} 15...
Nce4 {[%clk 0:02:54.3]} 16. Rac1 {[%clk 0:02:46.3]} 16... Bc5 {[%clk 0:02:46.2]}
17. Nd4 {[%clk 0:02:45.5]} 17... Nxc3 {[%clk 0:02:32.2]} 18. Qxc3 {[%clk
0:02:46.6]} 18... Ne4 {[%clk 0:02:33.3]} 19. Qe1 {[%clk 0:02:33.9]} 19... Qd7
{[%clk 0:02:15.3]} 20. Bxe4 {[%clk 0:02:29.1]} 20... dxe4 {[%clk 0:02:15.7]} 21.
Nb3 {[%clk 0:02:30.7]} 21... Qb5 {[%clk 0:02:08.8]} 22. Nxc5 {[%clk 0:02:32]}
22... bxc5 {[%clk 0:02:09.7]} 23. Be3 {[%clk 0:02:33.9]} 23... Rac8 {[%clk
0:02:01.3]} 24. Rc3 {[%clk 0:02:34.8]} 24... Ba6 {[%clk 0:02:00]} 25. Rd2 {[%clk
0:02:33.9]} 25... c4 {[%clk 0:01:58.1]} 26. Qc1 {[%clk 0:02:25.9]} 26... Rc7
{[%clk 0:01:49.3]} 27. Kg2 {[%clk 0:02:26.2]} 27... h6 {[%clk 0:01:48.6]} 28.
Ra3 {[%clk 0:02:20.5]} 28... Bc8 {[%clk 0:01:43.5]} 29. Qc3 {[%clk 0:02:20.4]}
29... a6 {[%clk 0:01:39.3]} 30. Ra5 {[%clk 0:02:20.9]} 30... Qb7 {[%clk
0:01:34.9]} 31. Rad5 {[%clk 0:02:14.5]} 31... Be6 {[%clk 0:01:33.5]} 32. Rd8
{[%clk 0:02:15.8]} 32... Rc8 {[%clk 0:01:31.5]} 33. Rxf8+ {[%clk 0:02:17.4]}
33... Rxf8 {[%clk 0:01:31.4]} 34. Rd6 {[%clk 0:02:13.8]} 34... Bg4 {[%clk
0:01:19.2]} 35. Rd2 {[%clk 0:02:03.3]} 35... Rc8 {[%clk 0:01:15.8]} 36. Qe5
{[%clk 0:02:00.8]} 36... f6 {[%clk 0:00:57.7]} 37. Qc3 {[%clk 0:02:01.6]} 37...
Be6 {[%clk 0:00:56.3]} 38. Rd6 {[%clk 0:01:56.3]} 38... Rc6 {[%clk 0:00:57.1]}
39. Rd8+ {[%clk 0:01:56.6]} 39... Kh7 {[%clk 0:00:55.4]} 40. Rd4 {[%clk
0:01:39.4]} 40... Rc7 {[%clk 0:00:52.9]} 41. Qc2 {[%clk 0:01:37.9]} 41... Bd5
{[%clk 0:00:42.3]} 42. h4 {[%clk 0:01:39]} 42... h5 {[%clk 0:00:42.6]} 43. Kh2
{[%clk 0:01:40.1]} 43... Qc6 {[%clk 0:00:37.6]} 44. Qd2 {[%clk 0:01:40.9]} 44...
Rd7 {[%clk 0:00:38.5]} 45. Qa5 {[%clk 0:01:38.1]} 45... Qb5 {[%clk 0:00:37.7]}
46. Qc3 {[%clk 0:01:38.1]} 46... Rb7 {[%clk 0:00:35.3]} 47. Rd2 {[%clk
0:01:37.3]} 47... Be6 {[%clk 0:00:33.4]} 48. Kg1 {[%clk 0:01:31.3]} 48... Bf5
{[%clk 0:00:32.3]} 49. Bd4 {[%clk 0:01:25.7]} 49... Bg6 {[%clk 0:00:32.6]} 50.
Qe3 {[%clk 0:01:26.1]} 50... Qa4 {[%clk 0:00:32.3]} 51. a3 {[%clk 0:01:25.4]}
51... Rb3 {[%clk 0:00:31.8]} 52. Bc3 {[%clk 0:01:26.8]} 52... Rb7 {[%clk
0:00:31.7]} 53. Rd5 {[%clk 0:01:26.2]} 53... Qc6 {[%clk 0:00:31.5]} 54. Qd4
{[%clk 0:01:25.8]} 54... e3 {[%clk 0:00:28.4]} 55. f3 {[%clk 0:01:23.7]} 55...
Qe6 {[%clk 0:00:28]} 56. Kg2 {[%clk 0:01:20.8]} 56... Bf5 {[%clk 0:00:22.2]} 57.
Rd6 {[%clk 0:01:18.2]} 57... Bh3+ {[%clk 0:00:21.1]} 58. Kh2 {[%clk 0:01:19.5]}
58... Qf5 {[%clk 0:00:22.2]} 59. Qxe3 {[%clk 0:01:07.1]} 59... Bf1 {[%clk
0:00:23.2]} 60. Qf2 {[%clk 0:01:06.6]} 60... Qh3+ {[%clk 0:00:21.5]} 61. Kg1
{[%clk 0:01:07.7]} 61... Re7 {[%clk 0:00:23.4]} 62. Rd2 {[%clk 0:01:03]} 62...
g5 {[%clk 0:00:11.4]} 63. hxg5 {[%clk 0:01:01.3]} 63... fxg5 {[%clk 0:00:12.3]}
64. Qxf1 {[%clk 0:00:54.3]} 64... Qxg3+ {[%clk 0:00:13.3]} 65. Qg2 {[%clk
0:00:52.3]} 65... Qe1+ {[%clk 0:00:14]} 66. Kh2 {[%clk 0:00:53.9]} 66... Qh4+
{[%clk 0:00:14.5]} 67. Qh3 {[%clk 0:00:52.9]} 67... Qf2+ {[%clk 0:00:15.6]} 68.
Qg2 {[%clk 0:00:54.6]} 68... Qh4+ {[%clk 0:00:16.1]} 69. Kg1 {[%clk 0:00:55.8]}
69... Qe1+ {[%clk 0:00:17]} 70. Qf1 {[%clk 0:00:57.2]} 70... Qg3+ {[%clk
0:00:18.1]} 71. Kh1 {[%clk 0:00:59]} 71... Qh4+ {[%clk 0:00:18.1]} 72. Kg2
{[%clk 0:00:59.8]} 72... g4 {[%clk 0:00:19.4]} 73. Qb1+ {[%clk 0:00:54.9]} 73...
Kh6 {[%clk 0:00:18.8]} 74. Rd6+ {[%clk 0:00:55.5]} 74... Kg5 {[%clk 0:00:19.8]}
75. Qg6+ {[%clk 0:00:55.6]} 75... Kf4 {[%clk 0:00:20.5]} 1-0